[Event "EYCC Girls-U14 2019"]
[Site "Bratislava"]
[Date "2019.08.09"]
[Round "8.14"]
[White "Slusarczyk, Milena"]
[Black "Nadzamova, Viktoria"]
[Result "0-1"]
[ECO "A46"]
[WhiteElo "1522"]
[BlackElo "1854"]
[Annotator "NA"]
[PlyCount "80"]
[EventDate "2019.08.02"]
[EventType "swiss"]
[EventCountry "SVK"]
[SourceTitle "playchess.com"]
[Source "ChessBase"]
[SourceQuality "1"]
[TimeControl "40/5400+30:1800+30"]

1. d4 {[%emt 0:00:00]} Nf6 {[%emt 0:00:00]} 2. Nf3 {[%emt 0:00:04]} e6 {[%emt 0:00:00]} 3. Bf4 {[%emt 0:00:10]} d5 {[%emt 0:00:15]} 4. e3 {[%emt 0:00:32]} Be7 {[%emt 0:01:05]} 5. Bd3 {[%emt 0:00:47]} b6 {[%emt 0:02:48]} 6. c3 {[%emt 0:01:00]} O-O {[%emt 0:00:42]} 7. Nbd2 {[%emt 0:01:13]} Bb7 {[%emt 0:00:18]} 8. Ne5 {[%emt 0:00:44]} c5 {[%emt 0:00:53]} 9. Qf3 Nbd7 {[%emt 0:03:24]} 10. Qh3 {[%emt 0:05:59]} a6 {[%emt 0:03:24]} 11. g4 {[%emt 0:01:21]} g6 {[%emt 0:02:50]} 12. Qg2 {[%emt 0:02:43]} cxd4 {[%emt 0:08:25]} 13. exd4 {[%emt 0:00:18]} Nxe5 {[%emt 0:01:40]} 14. Bxe5 {[%emt 0:00:41]} Nd7 {[%emt 0:01:42]} 15. Bf4 {[%emt 0:02:36]} e5 {[%emt 0:15:03]} 16. dxe5 {[%emt 0:05:14]} Nc5 {[%emt 0:03:25]} 17. Bc2 {[%emt 0:09:47]} d4 {[%emt 0:00:34]} 18. f3 {[%emt 0:05:34]} dxc3 {[%emt 0:01:50]} 19. bxc3 {[%emt 0:00:34]} Nd3+ {[%emt 0:00:35]} 20. Bxd3 {[%emt 0:03:00]} Qxd3 {[%emt 0:00:27]} 21. Qe2 {[%emt 0:03:04]} Qxc3 {[%emt 0:01:01]} 22. O-O {[%emt 0:00:58]} Qd4+ {[%emt 0:05:13]} 23. Be3 {[%emt 0:08:33]} Qxe5 {[%emt 0:01:47]} 24. Nc4 {[%emt 0:01:16]} Qe6 {[%emt 0:00:10]} 25. Rae1 {[%emt 0:14:14]} b5 {[%emt 0:02:38]} 26. Na5 {[%emt 0:03:00]} Bd5 {[%emt 0:01:32]} 27. Bh6 {[%emt 0:04:02]} Bc5+ {[%emt 0:13:20]} 28. Kh1 {[%emt 0:01:55]} Rfe8 {[%emt 0:07:22]} 29. Qxe6 {[%emt 0:03:34]} Rxe6 {[%emt 0:00:34]} 30. Rxe6 {[%emt 0:01:38]} fxe6 {[%emt 0:00:32]} 31. Nb3 {[%emt 0:00:38]} Bf8 {[%emt 0:01:05]} 32. Bf4 {[%emt 0:00:54]} a5 {[%emt 0:00:48]} 33. Nd4 {[%emt 0:01:36]} b4 {[%emt 0:00:51]} 34. Rf2 {[%emt 0:01:42]} Bg7 {[%emt 0:03:17]} 35. Nb5 {[%emt 0:01:38]} Rf8 {[%emt 0:00:34]} 36. Bc7 {[%emt 0:02:21]} Bc6 {[%emt 0:01:33]} 37. Nd6 {[%emt 0:02:05]} Bd4 {[%emt 0:01:08]} 38. Rf1 {[%emt 0:00:16]} Rxf3 {[%emt 0:00:09]} 39. Kg2 {[%emt 0:01:27]} Rd3+ {[%emt 0:03:36]} 40. Rf3 {[%emt 0:00:00]} Bxf3+ {[%emt 0:00:00]} 0-1

[Event "EYCC Girls-U14 2019"]
[Site "Bratislava"]
[Date "2019.08.09"]
[Round "8.15"]
[White "Lhotska, Anna"]
[Black "Zabrzanska, Weronika"]
[Result "0-1"]
[ECO "A13"]
[WhiteElo "1922"]
[BlackElo "1770"]
[Annotator "NA"]
[PlyCount "42"]
[EventDate "2019.08.02"]
[EventType "swiss"]
[EventCountry "SVK"]
[SourceTitle "playchess.com"]
[Source "ChessBase"]
[SourceQuality "1"]
[TimeControl "40/5400+30:1800+30"]

1. c4 {[%emt 0:00:00]} e6 {[%emt 0:00:00]} 2. e4 {[%emt 0:02:04]} d5 {[%emt 0:00:00]} 3. exd5 {[%emt 0:01:05]} exd5 {[%emt 0:00:00]} 4. d4 {[%emt 0:00:46]} Bb4+ {[%emt 0:00:01]} 5. Nc3 {[%emt 0:00:38]} Nf6 {[%emt 0:01:11]} 6. Qb3 {[%emt 0:08:56]} Qe7+ {[%emt 0:07:12]} 7. Be3 Nc6 {[%emt 0:13:05]} 8. Nf3 {[%emt 0:16:33]} Na5 {[%emt 0:07:16]} 9. Qc2 {[%emt 0:02:38]} Nxc4 {[%emt 0:06:29]} 10. Bxc4 {[%emt 0:00:40]} dxc4 {[%emt 0:00:06]} 11. Ne5 {[%emt 0:02:23]} Be6 {[%emt 0:04:16]} 12. O-O {[%emt 0:04:32]} O-O {[%emt 0:13:56]} 13. Bg5 {[%emt 0:08:23]} Bxc3 {[%emt 0:07:52]} 14. bxc3 {[%emt 0:04:29]} h6 {[%emt 0:07:41]} 15. Bh4 {[%emt 0:01:23]} c5 {[%emt 0:08:27]} 16. f4 {[%emt 0:05:51]} cxd4 {[%emt 0:01:14]} 17. cxd4 {[%emt 0:00:40]} Qd6 {[%emt 0:01:28]} 18. Rad1 {[%emt 0:01:58]} Ng4 {[%emt 0:03:52]} 19. Qe4 {[%emt 0:07:26]} f6 {[%emt 0:03:35]} 20. Ng6 {[%emt 0:15:44]} Rfe8 {[%emt 0:00:14]} 21. f5 {[%emt 0:00:32]} Qxh2# {[%emt 0:00:07]} 0-1

[Event "EYCC Girls-U14 2019"]
[Site "Bratislava"]
[Date "2019.08.09"]
[Round "8.16"]
[White "Barwinska, Ewa"]
[Black "Toth, Nikoletta"]
[Result "1/2-1/2"]
[ECO "B33"]
[WhiteElo "1758"]
[BlackElo "2023"]
[Annotator "NA"]
[PlyCount "68"]
[EventDate "2019.08.02"]
[EventType "swiss"]
[EventCountry "SVK"]
[SourceTitle "playchess.com"]
[Source "ChessBase"]
[SourceQuality "1"]
[TimeControl "40/5400+30:1800+30"]

1. e4 {[%emt 0:00:00]} c5 {[%emt 0:00:00]} 2. Nf3 {[%emt 0:00:00]} Nc6 {[%emt 0:00:00]} 3. d4 {[%emt 0:00:00]} cxd4 {[%emt 0:00:00]} 4. Nxd4 {[%emt 0:00:04]} Nf6 {[%emt 0:00:00]} 5. Nc3 {[%emt 0:00:10]} e5 {[%emt 0:00:00]} 6. Ndb5 {[%emt 0:00:12]} d6 {[%emt 0:00:04]} 7. Bg5 {[%emt 0:00:19]} a6 {[%emt 0:00:12]} 8. Na3 {[%emt 0:00:09]} b5 {[%emt 0:00:08]} 9. Nd5 {[%emt 0:00:11]} Be7 {[%emt 0:00:06]} 10. Bxf6 {[%emt 0:00:28]} Bxf6 {[%emt 0:00:06]} 11. c3 {[%emt 0:00:19]} Ne7 {[%emt 0:01:25]} 12. Nxf6+ {[%emt 0:02:26]} gxf6 {[%emt 0:00:06]} 13. Nc2 {[%emt 0:03:29]} d5 {[%emt 0:04:54]} 14. exd5 {[%emt 0:02:25]} Qxd5 {[%emt 0:00:38]} 15. Qxd5 {[%emt 0:08:12]} Nxd5 {[%emt 0:00:08]} 16. O-O-O {[%emt 0:06:32]} Bb7 {[%emt 0:01:09]} 17. Ne3 {[%emt 0:02:49]} Nxe3 {[%emt 0:03:00]} 18. fxe3 {[%emt 0:00:07]} h5 {[%emt 0:11:17]} 19. Rg1 {[%emt 0:03:25]} Rg8 {[%emt 0:03:12]} 20. g3 {[%emt 0:04:02]} h4 {[%emt 0:01:49]} 21. Bg2 {[%emt 0:05:50]} Bxg2 {[%emt 0:00:33]} 22. Rxg2 {[%emt 0:00:07]} hxg3 {[%emt 0:00:06]} 23. Rxg3 {[%emt 0:02:49]} Rxg3 {[%emt 0:00:26]} 24. hxg3 {[%emt 0:00:09]} Ke7 {[%emt 0:00:35]} 25. Kc2 {[%emt 0:03:02]} Rg8 {[%emt 0:00:38]} 26. Rg1 {[%emt 0:02:40]} Rg4 {[%emt 0:00:10]} 27. b3 {[%emt 0:02:42]} Ke6 {[%emt 0:01:31]} 28. Kd3 {[%emt 0:01:37]} Kd5 {[%emt 0:00:53]} 29. Rf1 {[%emt 0:05:51]} e4+ {[%emt 0:04:44]} 30. Ke2 {[%emt 0:04:18]} Rxg3 {[%emt 0:06:02]} 31. Rxf6 {[%emt 0:01:10]} Rg2+ {[%emt 0:00:06]} 32. Rf2 {[%emt 0:04:51]} Rg7 {[%emt 0:16:29]} 33. Rf6 {[%emt 0:04:44]} Rg2+ {[%emt 0:00:04]} 34. Rf2 {[%emt 0:00:21]} Ke5 1/2-1/2

[Event "EYCC Girls-U14 2019"]
[Site "Bratislava"]
[Date "2019.08.09"]
[Round "8.17"]
[White "Zhou, Lulu"]
[Black "Volovich, Julia"]
[Result "1-0"]
[ECO "C18"]
[WhiteElo "1944"]
[BlackElo "1726"]
[Annotator "NA"]
[PlyCount "107"]
[EventDate "2019.08.02"]
[EventType "swiss"]
[EventCountry "SVK"]
[SourceTitle "playchess.com"]
[Source "ChessBase"]
[SourceQuality "1"]
[TimeControl "40/5400+30:1800+30"]

1. e4 {[%emt 0:00:00]} e6 {[%emt 0:00:00]} 2. d4 {[%emt 0:00:00]} d5 {[%emt 0:00:00]} 3. Nc3 {[%emt 0:00:00]} Bb4 {[%emt 0:00:00]} 4. e5 {[%emt 0:00:00]} c5 {[%emt 0:00:00]} 5. a3 {[%emt 0:00:00]} Bxc3+ {[%emt 0:00:00]} 6. bxc3 {[%emt 0:00:00]} Ne7 {[%emt 0:00:04]} 7. h4 {[%emt 0:00:00]} Qc7 {[%emt 0:06:53]} 8. Nf3 {[%emt 0:01:02]} Bd7 {[%emt 0:04:27]} 9. a4 {[%emt 0:00:27]} Nbc6 {[%emt 0:09:23]} 10. h5 {[%emt 0:00:20]} cxd4 {[%emt 0:08:25]} 11. cxd4 {[%emt 0:00:10]} Nb4 {[%emt 0:02:59]} 12. Bd3 {[%emt 0:02:45]} Qc3+ {[%emt 0:04:44]} 13. Bd2 {[%emt 0:01:59]} Nxd3+ {[%emt 0:00:25]} 14. cxd3 {[%emt 0:05:56]} Qxd3 {[%emt 0:05:29]} 15. h6 {[%emt 0:00:11]} gxh6 {[%emt 0:09:20]} 16. Bxh6 {[%emt 0:02:27]} Qxd1+ {[%emt 0:01:54]} 17. Kxd1 {[%emt 0:00:05]} Nf5 {[%emt 0:06:45]} 18. Bg5 {[%emt 0:01:28]} h6 {[%emt 0:01:42]} 19. g4 {[%emt 0:00:36]} Rg8 {[%emt 0:08:24]} 20. gxf5 {[%emt 0:03:57]} hxg5 {[%emt 0:00:12]} 21. f6 {[%emt 0:00:06]} Rc8 {[%emt 0:10:56]} 22. Kd2 {[%emt 0:14:19]} Rc4 {[%emt 0:06:44]} 23. Rag1 {[%emt 0:17:13]} Bxa4 {[%emt 0:03:41]} 24. Rxg5 {[%emt 0:04:10]} Rf8 {[%emt 0:01:06]} 25. Rgh5 {[%emt 0:00:06]} Bc2 {[%emt 0:01:51]} 26. Rh8 {[%emt 0:01:19]} Rxh8 {[%emt 0:00:07]} 27. Rxh8+ {[%emt 0:00:04]} Kd7 {[%emt 0:00:04]} 28. Rb8 {[%emt 0:10:50]} Bg6 {[%emt 0:01:10]} 29. Rxb7+ {[%emt 0:01:10]} Rc7 {[%emt 0:00:05]} 30. Rxc7+ {[%emt 0:06:31]} Kxc7 {[%emt 0:00:05]} 31. Kc3 {[%emt 0:00:04]} Kb6 {[%emt 0:02:37]} 32. Nh4 {[%emt 0:01:36]} Bh5 {[%emt 0:01:55]} 33. f4 {[%emt 0:02:40]} Kc6 {[%emt 0:02:07]} 34. f5 {[%emt 0:02:31]} Kd7 {[%emt 0:00:54]} 35. fxe6+ {[%emt 0:00:09]} Kxe6 {[%emt 0:00:18]} 36. Kb4 {[%emt 0:00:12]} Be2 {[%emt 0:00:51]} 37. Kc5 {[%emt 0:00:30]} a5 {[%emt 0:00:58]} 38. Ng2 {[%emt 0:00:40]} Kf5 {[%emt 0:00:26]} 39. Ne3+ {[%emt 0:00:26]} Ke6 {[%emt 0:00:35]} 40. Nxd5 {[%emt 0:00:00]} Bg4 {[%emt 0:00:00]} 41. Ne3 {[%emt 0:01:36]} Bf3 {[%emt 0:01:36]} 42. Kb5 {[%emt 0:02:32]} Kd7 {[%emt 0:04:52]} 43. d5 {[%emt 0:06:41]} Be4 {[%emt 0:01:43]} 44. Kxa5 {[%emt 0:01:00]} Bf3 {[%emt 0:00:55]} 45. Kb6 {[%emt 0:00:08]} Be4 {[%emt 0:00:29]} 46. Kc5 {[%emt 0:00:06]} Bf3 {[%emt 0:00:31]} 47. Nf5 {[%emt 0:01:26]} Be4 {[%emt 0:00:46]} 48. Nd4 {[%emt 0:00:28]} Bg2 {[%emt 0:00:37]} 49. e6+ {[%emt 0:00:44]} fxe6 {[%emt 0:00:38]} 50. dxe6+ {[%emt 0:00:16]} Ke8 {[%emt 0:00:28]} 51. Kd6 {[%emt 0:00:16]} Bh3 {[%emt 0:00:44]} 52. Nf3 {[%emt 0:00:16]} Bf5 {[%emt 0:00:44]} 53. Ne5 {[%emt 0:00:09]} Bc2 {[%emt 0:00:48]} 54. f7+ {[%emt 0:00:07]} 1-0

[Event "EYCC Girls-U14 2019"]
[Site "Bratislava"]
[Date "2019.08.09"]
[Round "8.18"]
[White "Katter, Katharina"]
[Black "Badalyan, Seda"]
[Result "1-0"]
[ECO "D02"]
[WhiteElo "1824"]
[BlackElo "1466"]
[Annotator "NA"]
[PlyCount "63"]
[EventDate "2019.08.02"]
[EventType "swiss"]
[EventCountry "SVK"]
[SourceTitle "playchess.com"]
[Source "ChessBase"]
[SourceQuality "1"]
[TimeControl "40/5400+30:1800+30"]

1. d4 {[%emt 0:00:00]} d5 {[%emt 0:00:00]} 2. Nf3 {[%emt 0:00:00]} c6 {[%emt 0:00:00]} 3. e3 {[%emt 0:00:07]} Bf5 {[%emt 0:00:11]} 4. c4 {[%emt 0:00:28]} e6 {[%emt 0:00:11]} 5. Nc3 {[%emt 0:00:45]} Nf6 {[%emt 0:01:09]} 6. Nh4 {[%emt 0:00:34]} Bg4 {[%emt 0:01:59]} 7. Qb3 {[%emt 0:07:39]} Qc7 {[%emt 0:04:23]} 8. h3 {[%emt 0:03:03]} Bh5 {[%emt 0:00:39]} 9. g4 {[%emt 0:01:36]} Bg6 {[%emt 0:00:39]} 10. Nxg6 {[%emt 0:00:47]} hxg6 {[%emt 0:00:22]} 11. Bg2 {[%emt 0:01:16]} Be7 {[%emt 0:01:08]} 12. Bd2 {[%emt 0:02:10]} Nbd7 {[%emt 0:04:47]} 13. Rc1 {[%emt 0:05:00]} Qb6 {[%emt 0:06:02]} 14. Qa4 {[%emt 0:10:22]} O-O {[%emt 0:04:55]} 15. g5 {[%emt 0:21:09]} Ne8 {[%emt 0:09:27]} 16. cxd5 {[%emt 0:01:38]} exd5 {[%emt 0:01:38]} 17. Nxd5 {[%emt 0:01:59]} cxd5 {[%emt 0:08:07]} 18. Qxd7 {[%emt 0:00:19]} Bb4 {[%emt 0:00:39]} 19. Rc2 {[%emt 0:06:13]} Nd6 {[%emt 0:08:45]} 20. Qa4 {[%emt 0:08:30]} Bxd2+ {[%emt 0:02:30]} 21. Kxd2 {[%emt 0:00:54]} Nc4+ {[%emt 0:00:52]} 22. Kc1 {[%emt 0:00:52]} Rac8 {[%emt 0:05:28]} 23. Kb1 {[%emt 0:04:08]} Rfd8 {[%emt 0:06:28]} 24. Rhc1 {[%emt 0:01:14]} Rc6 {[%emt 0:04:11]} 25. Bxd5 {[%emt 0:06:57]} Rxd5 {[%emt 0:06:40]} 26. Rxc4 {[%emt 0:00:10]} Rxc4 {[%emt 0:00:26]} 27. Rxc4 {[%emt 0:01:11]} Rxg5 {[%emt 0:00:21]} 28. Qe8+ {[%emt 0:02:28]} Kh7 {[%emt 0:00:06]} 29. Rc8 {[%emt 0:02:20]} Rg1+ {[%emt 0:01:23]} 30. Kc2 {[%emt 0:00:03]} Kh6 {[%emt 0:02:52]} 31. Qe4 {[%emt 0:02:58]} Qd6 {[%emt 0:03:34]} 32. Qh4# {[%emt 0:00:13]} 1-0

[Event "EYCC Girls-U14 2019"]
[Site "Bratislava"]
[Date "2019.08.09"]
[Round "8.19"]
[White "Ruseva, Eva"]
[Black "Mikhailina, Elena"]
[Result "1-0"]
[ECO "D35"]
[WhiteElo "1804"]
[BlackElo "1689"]
[Annotator "NA"]
[PlyCount "165"]
[EventDate "2019.08.02"]
[EventType "swiss"]
[EventCountry "SVK"]
[SourceTitle "playchess.com"]
[Source "ChessBase"]
[SourceQuality "1"]
[TimeControl "40/5400+30:1800+30"]

1. d4 {[%emt 0:00:00]} d5 {[%emt 0:00:00]} 2. c4 {[%emt 0:00:00]} e6 {[%emt 0:00:00]} 3. Nc3 {[%emt 0:00:00]} Nf6 {[%emt 0:00:00]} 4. cxd5 {[%emt 0:00:00]} exd5 {[%emt 0:00:00]} 5. Bg5 {[%emt 0:00:03]} c6 {[%emt 0:00:05]} 6. e3 {[%emt 0:00:24]} Bf5 {[%emt 0:02:26]} 7. Bd3 {[%emt 0:05:00]} Bg6 {[%emt 0:09:31]} 8. Nge2 {[%emt 0:02:04]} Be7 {[%emt 0:04:49]} 9. O-O {[%emt 0:01:07]} Nbd7 {[%emt 0:02:11]} 10. Qc2 {[%emt 0:02:59]} O-O {[%emt 0:02:10]} 11. Rad1 {[%emt 0:02:32]} Re8 {[%emt 0:02:40]} 12. Bxg6 {[%emt 0:06:22]} hxg6 {[%emt 0:00:25]} 13. Rfe1 {[%emt 0:01:01]} Ne4 {[%emt 0:16:11]} 14. Nxe4 {[%emt 0:11:16]} dxe4 {[%emt 0:08:12]} 15. Bf4 {[%emt 0:04:41]} Bg5 {[%emt 0:14:13]} 16. Qb3 {[%emt 0:02:23]} Bxf4 {[%emt 0:08:10]} 17. Nxf4 {[%emt 0:00:11]} g5 {[%emt 0:02:20]} 18. Ne2 {[%emt 0:02:03]} Qb6 {[%emt 0:04:37]} 19. Nc3 {[%emt 0:19:47]} Qxb3 {[%emt 0:02:39]} 20. axb3 {[%emt 0:00:05]} Rad8 {[%emt 0:06:07]} 21. Ra1 {[%emt 0:01:16]} a6 {[%emt 0:01:04]} 22. Na4 {[%emt 0:03:41]} a5 {[%emt 0:06:51]} 23. Rec1 {[%emt 0:02:15]} Re6 {[%emt 0:06:08]} 24. Nc5 {[%emt 0:01:34]} Nxc5 {[%emt 0:00:05]} 25. Rxc5 {[%emt 0:00:10]} b6 {[%emt 0:00:02]} 26. Rxg5 {[%emt 0:01:44]} f6 {[%emt 0:00:05]} 27. Rg4 {[%emt 0:00:20]} Rd5 {[%emt 0:00:19]} 28. Kf1 {[%emt 0:01:39]} Rb5 {[%emt 0:00:27]} 29. Ra3 {[%emt 0:00:23]} Kf7 {[%emt 0:01:00]} 30. Rh4 {[%emt 0:02:32]} Re8 {[%emt 0:00:04]} 31. Ke2 {[%emt 0:00:23]} Rg5 {[%emt 0:01:17]} 32. g3 {[%emt 0:00:42]} Rb5 {[%emt 0:00:17]} 33. Kd2 {[%emt 0:00:31]} Rf5 {[%emt 0:00:46]} 34. Rf4 {[%emt 0:00:51]} Rh5 {[%emt 0:01:10]} 35. h4 {[%emt 0:00:08]} Rb5 {[%emt 0:00:34]} 36. Kc3 {[%emt 0:00:29]} c5 {[%emt 0:00:18]} 37. Ra4 {[%emt 0:00:16]} Rb4 {[%emt 0:00:41]} 38. dxc5 {[%emt 0:01:22]} bxc5 {[%emt 0:00:32]} 39. Rxa5 {[%emt 0:01:11]} Reb8 {[%emt 0:00:13]} 40. Ra3 {[%emt 0:00:00]} Ke6 {[%emt 0:00:00]} 41. Rg4 {[%emt 0:02:27]} R8b7 {[%emt 0:05:33]} 42. h5 {[%emt 0:01:24]} Kd5 {[%emt 0:12:10]} 43. Rh4 {[%emt 0:06:13]} R7b5 {[%emt 0:04:54]} 44. h6 {[%emt 0:02:21]} gxh6 {[%emt 0:00:03]} 45. Rxh6 {[%emt 0:00:10]} Ke5 {[%emt 0:00:32]} 46. Rh5+ {[%emt 0:02:00]} Ke6 {[%emt 0:04:16]} 47. g4 {[%emt 0:01:02]} Kf7 {[%emt 0:00:50]} 48. Kc2 {[%emt 0:08:41]} Kg6 {[%emt 0:00:38]} 49. Rd5 {[%emt 0:03:04]} Kh6 {[%emt 0:01:15]} 50. Rf5 {[%emt 0:01:26]} Kg6 {[%emt 0:00:05]} 51. Rh5 {[%emt 0:00:19]} Kg7 {[%emt 0:00:42]} 52. Ra7+ {[%emt 0:02:42]} Kg8 {[%emt 0:00:39]} 53. Rd5 {[%emt 0:01:01]} Rb8 {[%emt 0:00:32]} 54. Rxc5 {[%emt 0:00:38]} Rxb3 {[%emt 0:00:07]} 55. Ra2 {[%emt 0:00:17]} R3b4 {[%emt 0:00:18]} 56. Rc3 {[%emt 0:00:31]} Kg7 {[%emt 0:00:21]} 57. b3 {[%emt 0:00:12]} Kg6 {[%emt 0:00:33]} 58. Ra5 {[%emt 0:02:34]} R8b7 {[%emt 0:00:46]} 59. Rac5 {[%emt 0:01:27]} Ra7 {[%emt 0:02:31]} 60. Kb2 {[%emt 0:00:11]} Rab7 {[%emt 0:01:11]} 61. R5c4 {[%emt 0:00:55]} Rxc4 {[%emt 0:02:14]} 62. Rxc4 {[%emt 0:00:05]} Re7 {[%emt 0:00:07]} 63. Rc5 {[%emt 0:00:28]} Rd7 {[%emt 0:00:39]} 64. Rf5 {[%emt 0:00:16]} Kf7 {[%emt 0:00:58]} 65. g5 {[%emt 0:00:34]} Kg6 {[%emt 0:00:09]} 66. Rxf6+ {[%emt 0:00:08]} Kxg5 {[%emt 0:00:04]} 67. Rf4 {[%emt 0:00:05]} Rd6 {[%emt 0:00:32]} 68. Kc3 {[%emt 0:00:35]} Rd3+ {[%emt 0:00:06]} 69. Kc4 {[%emt 0:00:05]} Rd2 {[%emt 0:00:05]} 70. b4 {[%emt 0:00:13]} Rc2+ {[%emt 0:00:04]} 71. Kb5 {[%emt 0:00:24]} Rb2 {[%emt 0:00:09]} 72. Kc5 {[%emt 0:00:05]} Rc2+ {[%emt 0:00:08]} 73. Kb6 {[%emt 0:00:05]} Rb2 {[%emt 0:00:04]} 74. b5 {[%emt 0:00:03]} Rc2 {[%emt 0:00:09]} 75. Kb7 {[%emt 0:00:05]} Rb2 {[%emt 0:00:06]} 76. b6 {[%emt 0:00:05]} Rc2 {[%emt 0:00:03]} 77. Kb8 {[%emt 0:02:46]} Rb2 {[%emt 0:00:07]} 78. b7 {[%emt 0:02:42]} Kg6 {[%emt 0:00:06]} 79. Rxe4 {[%emt 0:01:11]} Rxf2 {[%emt 0:00:02]} 80. Rc4 {[%emt 0:00:44]} Rf8+ {[%emt 0:00:37]} 81. Ka7 {[%emt 0:00:13]} Rf7 {[%emt 0:00:06]} 82. Kb6 {[%emt 0:00:07]} Rf8 {[%emt 0:00:10]} 83. Rc8 {[%emt 0:00:07]} 1-0

[Event "EYCC Girls-U14 2019"]
[Site "Bratislava"]
[Date "2019.08.09"]
[Round "8.20"]
[White "Zavivaeva, Emilia"]
[Black "Spirkova, Marija"]
[Result "1-0"]
[ECO "C62"]
[WhiteElo "1740"]
[BlackElo "1325"]
[Annotator "NA"]
[PlyCount "165"]
[EventDate "2019.08.02"]
[EventType "swiss"]
[EventCountry "SVK"]
[SourceTitle "playchess.com"]
[Source "ChessBase"]
[SourceQuality "1"]
[TimeControl "40/5400+30:1800+30"]

1. e4 {[%emt 0:00:39]} e5 {[%emt 0:00:00]} 2. Nf3 {[%emt 0:00:18]} Nc6 {[%emt 0:00:00]} 3. Bb5 {[%emt 0:00:14]} d6 {[%emt 0:00:00]} 4. d4 {[%emt 0:00:23]} exd4 {[%emt 0:00:14]} 5. Nxd4 {[%emt 0:00:08]} Bd7 {[%emt 0:00:12]} 6. Nc3 {[%emt 0:00:08]} Nxd4 {[%emt 0:00:31]} 7. Bxd7+ {[%emt 0:00:06]} Qxd7 {[%emt 0:00:09]} 8. Qxd4 {[%emt 0:00:11]} Nf6 {[%emt 0:00:20]} 9. O-O {[%emt 0:00:10]} Be7 {[%emt 0:00:24]} 10. Rd1 {[%emt 0:01:16]} O-O {[%emt 0:01:48]} 11. e5 {[%emt 0:00:14]} Ne8 {[%emt 0:01:13]} 12. Bf4 {[%emt 0:00:18]} Qc6 {[%emt 0:03:57]} 13. Nd5 {[%emt 0:00:44]} Bd8 {[%emt 0:03:03]} 14. exd6 {[%emt 0:17:27]} Nxd6 {[%emt 0:01:44]} 15. Nb4 {[%emt 0:00:15]} Qc4 {[%emt 0:04:14]} 16. Bxd6 {[%emt 0:04:03]} Qxd4 {[%emt 0:00:09]} 17. Rxd4 {[%emt 0:00:02]} cxd6 {[%emt 0:00:13]} 18. Rxd6 {[%emt 0:02:33]} Be7 {[%emt 0:00:27]} 19. Rd4 {[%emt 0:00:10]} Bf6 {[%emt 0:01:30]} 20. Rd7 {[%emt 0:00:37]} Bxb2 {[%emt 0:02:35]} 21. Rb1 {[%emt 0:00:27]} Ba3 {[%emt 0:01:06]} 22. Rxb7 {[%emt 0:00:17]} Bxb4 {[%emt 0:01:29]} 23. R1xb4 {[%emt 0:00:38]} h6 {[%emt 0:01:21]} 24. g3 {[%emt 0:00:20]} Rfc8 {[%emt 0:00:29]} 25. c4 {[%emt 0:01:46]} a5 {[%emt 0:04:02]} 26. Ra4 {[%emt 0:01:21]} Rc5 {[%emt 0:00:12]} 27. Rb5 {[%emt 0:02:21]} Rac8 {[%emt 0:01:03]} 28. Raxa5 {[%emt 0:10:29]} Rxc4 {[%emt 0:00:18]} 29. Ra7 {[%emt 0:00:42]} Rc1+ {[%emt 0:02:18]} 30. Kg2 {[%emt 0:00:06]} R8c7 {[%emt 0:01:56]} 31. Rxc7 {[%emt 0:07:30]} Rxc7 {[%emt 0:00:05]} 32. a4 {[%emt 0:00:06]} Ra7 {[%emt 0:00:24]} 33. a5 {[%emt 0:00:23]} Kf8 {[%emt 0:01:18]} 34. Kf3 {[%emt 0:01:33]} Ke7 {[%emt 0:00:13]} 35. Ke4 {[%emt 0:06:44]} Ke6 {[%emt 0:08:55]} 36. f4 {[%emt 0:03:01]} Kd6 {[%emt 0:02:46]} 37. Kd4 {[%emt 0:00:15]} Kc6 {[%emt 0:01:51]} 38. Kc4 {[%emt 0:01:29]} Kd6 {[%emt 0:01:05]} 39. Rb6+ {[%emt 0:00:26]} Kc7 {[%emt 0:01:56]} 40. Kb5 {[%emt 0:00:00]} Kc8 {[%emt 0:00:00]} 41. a6 {[%emt 0:06:13]} Kc7 {[%emt 0:04:53]} 42. Kc5 {[%emt 0:02:59]} Kc8 {[%emt 0:02:46]} 43. Rc6+ {[%emt 0:00:45]} Kd7 {[%emt 0:00:45]} 44. Rb6 {[%emt 0:04:14]} Kc8 {[%emt 0:00:09]} 45. Rd6 {[%emt 0:01:52]} Kc7 {[%emt 0:01:03]} 46. g4 {[%emt 0:02:26]} Ra8 {[%emt 0:06:27]} 47. Rb6 {[%emt 0:00:44]} Kc8 {[%emt 0:01:56]} 48. f5 {[%emt 0:03:58]} Ra7 {[%emt 0:01:38]} 49. Rb7 {[%emt 0:01:46]} Rxa6 {[%emt 0:00:43]} 50. Rxf7 {[%emt 0:00:09]} g6 {[%emt 0:02:10]} 51. Kd5 {[%emt 0:02:32]} gxf5 {[%emt 0:05:07]} 52. gxf5 {[%emt 0:00:02]} Kd8 {[%emt 0:01:16]} 53. Ke5 {[%emt 0:00:39]} Ke8 {[%emt 0:00:45]} 54. Rh7 {[%emt 0:01:37]} Kf8 {[%emt 0:02:16]} 55. f6 {[%emt 0:02:03]} Ra5+ {[%emt 0:00:43]} 56. Ke6 {[%emt 0:00:17]} Ra6+ {[%emt 0:00:21]} 57. Kf5 {[%emt 0:00:17]} Kg8 {[%emt 0:03:09]} 58. Rg7+ {[%emt 0:05:22]} Kf8 {[%emt 0:00:28]} 59. Rb7 {[%emt 0:01:04]} Ra2 {[%emt 0:03:37]} 60. h4 {[%emt 0:01:10]} Rg2 {[%emt 0:03:44]} 61. Rh7 {[%emt 0:02:13]} Kg8 {[%emt 0:01:54]} 62. Rxh6 {[%emt 0:01:01]} Kf7 {[%emt 0:00:24]} 63. Rh7+ {[%emt 0:01:04]} Kg8 {[%emt 0:00:29]} 64. Rc7 {[%emt 0:00:25]} Rh2 {[%emt 0:01:27]} 65. Kg6 {[%emt 0:02:25]} Rg2+ {[%emt 0:00:33]} 66. Kh6 {[%emt 0:00:18]} Rf2 {[%emt 0:00:54]} 67. Rg7+ {[%emt 0:05:23]} Kf8 {[%emt 0:01:37]} 68. Kg6 {[%emt 0:12:38]} Rg2+ {[%emt 0:00:22]} 69. Kh7 {[%emt 0:00:12]} Rf2 {[%emt 0:00:25]} 70. Rg6 {[%emt 0:04:41]} Kf7 {[%emt 0:01:24]} 71. h5 {[%emt 0:00:18]} Rxf6 {[%emt 0:02:02]} 72. Rg7+ {[%emt 0:00:11]} Kf8 {[%emt 0:01:02]} 73. h6 {[%emt 0:00:03]} Rd6 {[%emt 0:01:47]} 74. Rc7 {[%emt 0:02:10]} Rb6 {[%emt 0:00:50]} 75. Rc5 {[%emt 0:03:34]} Rb7+ {[%emt 0:03:58]} 76. Kh8 {[%emt 0:04:46]} Rb6 {[%emt 0:02:31]} 77. Rf5+ {[%emt 0:00:13]} Ke8 {[%emt 0:02:30]} 78. Kg7 {[%emt 0:00:48]} Rb7+ {[%emt 0:01:32]} 79. Kg6 {[%emt 0:00:13]} Rb6+ {[%emt 0:08:21]} 80. Rf6 {[%emt 0:01:24]} Rb1 {[%emt 0:01:54]} 81. h7 {[%emt 0:01:10]} Rh1 {[%emt 0:01:57]} 82. Kg7 {[%emt 0:00:31]} Ke7 {[%emt 0:00:35]} 83. Rg6 {[%emt 0:00:15]} 1-0